[Event "*** Titled Tuesday Blitz"]
[Site "Chess.com"]
[Date "2020.10.20"]
[Round "2"]
[White "Flopezin"]
[Black "pfalcon1949"]
[Result "1-0"]
[WhiteElo "2367"]
[BlackElo "1988"]
[TimeControl "180+1"]
[EndTime "10:14:40 PDT"]
[Termination "Flopezin won by resignation"]

1. c4 {[%clk 0:03:00.9]} 1... Nf6 {[%clk 0:02:58.8]} 2. Nc3 {[%clk 0:03:01]}
2... c5 {[%clk 0:02:58.5]} 3. Nf3 {[%clk 0:03:00.9]} 3... d5 {[%clk 0:02:58.5]}
4. cxd5 {[%clk 0:03:00.8]} 4... Nxd5 {[%clk 0:02:58.7]} 5. e4 {[%clk 0:02:59.3]}
5... Nc7 {[%clk 0:02:58.3]} 6. d4 {[%clk 0:02:58.9]} 6... cxd4 {[%clk
0:02:57.3]} 7. Qxd4 {[%clk 0:02:59.8]} 7... Qxd4 {[%clk 0:02:56]} 8. Nxd4 {[%clk
0:03:00.7]} 8... Nc6 {[%clk 0:02:54.1]} 9. Nxc6 {[%clk 0:03:00.4]} 9... bxc6
{[%clk 0:02:53.8]} 10. Be3 {[%clk 0:03:01.1]} 10... e6 {[%clk 0:02:53.7]} 11.
O-O-O {[%clk 0:03:00.6]} 11... Bb7 {[%clk 0:02:54.2]} 12. Kb1 {[%clk 0:02:59.1]}
12... Bb4 {[%clk 0:02:54.1]} 13. Na4 {[%clk 0:02:58.9]} 13... O-O {[%clk
0:02:51.3]} 14. a3 {[%clk 0:02:57.1]} 14... Ba5 {[%clk 0:01:52]} 15. b4 {[%clk
0:02:53.2]} 15... Rfb8 {[%clk 0:01:51.8]} 16. bxa5 {[%clk 0:02:45.3]} 16... Ba6+
{[%clk 0:01:51.4]} 17. Ka2 {[%clk 0:02:44.1]} 17... Nb5 {[%clk 0:01:50.7]} 18.
Bxb5 {[%clk 0:02:43]} 18... Bxb5 {[%clk 0:01:50.1]} 19. Nc5 {[%clk 0:02:42.5]}
19... Bc4+ {[%clk 0:01:49.7]} 20. Ka1 {[%clk 0:02:42.5]} 20... Rb5 {[%clk
0:01:43.2]} 21. Rb1 {[%clk 0:02:41.2]} 21... Rxa5 {[%clk 0:01:38.3]} 22. a4
{[%clk 0:02:38.1]} 22... Bb5 {[%clk 0:01:25.6]} 23. Bd2 {[%clk 0:02:36.7]} 23...
Rxa4+ {[%clk 0:00:54.2]} 24. Nxa4 {[%clk 0:02:33.4]} 24... Bxa4 {[%clk
0:00:55.1]} 25. Rb7 {[%clk 0:02:32.5]} 25... Bb5 {[%clk 0:00:54.8]} 26. Ba5
{[%clk 0:02:30.7]} 26... h6 {[%clk 0:00:54.1]} 27. Rd1 {[%clk 0:02:29.3]} 27...
a6 {[%clk 0:00:54.4]} 28. Rdd7 {[%clk 0:02:28.7]} 28... Rf8 {[%clk 0:00:53.7]}
29. Bb4 {[%clk 0:02:29]} 1-0

[Event "*** Titled Tuesday Blitz"]
[Site "Chess.com"]
[Date "2020.10.20"]
[Round "2"]
[White "mamey78"]
[Black "lacafi"]
[Result "1-0"]
[WhiteElo "2399"]
[BlackElo "2123"]
[TimeControl "180+1"]
[EndTime "10:14:53 PDT"]
[Termination "mamey78 won by resignation"]

1. e4 {[%clk 0:03:00.9]} 1... c6 {[%clk 0:02:59.8]} 2. d4 {[%clk 0:03:00.2]}
2... d5 {[%clk 0:03:00.3]} 3. exd5 {[%clk 0:03:01]} 3... cxd5 {[%clk 0:03:00.2]}
4. c4 {[%clk 0:03:01.5]} 4... Nf6 {[%clk 0:02:59.5]} 5. Nc3 {[%clk 0:03:01.8]}
5... Nc6 {[%clk 0:02:59.6]} 6. Nf3 {[%clk 0:03:02.1]} 6... e6 {[%clk 0:02:55]}
7. cxd5 {[%clk 0:03:02.1]} 7... Nxd5 {[%clk 0:02:54.3]} 8. Bc4 {[%clk
0:03:02.3]} 8... Be7 {[%clk 0:02:53.1]} 9. O-O {[%clk 0:03:01.6]} 9... O-O
{[%clk 0:02:52.9]} 10. Re1 {[%clk 0:03:01.3]} 10... a6 {[%clk 0:02:51.9]} 11. a3
{[%clk 0:03:00.7]} 11... b5 {[%clk 0:02:51.1]} 12. Ba2 {[%clk 0:03:00.4]} 12...
Bf6 {[%clk 0:02:47.4]} 13. Nxd5 {[%clk 0:02:56.2]} 13... exd5 {[%clk 0:02:46.8]}
14. Qd3 {[%clk 0:02:56.5]} 14... g6 {[%clk 0:02:40.6]} 15. Bh6 {[%clk
0:02:53.3]} 15... Bg7 {[%clk 0:02:36.6]} 16. Bxg7 {[%clk 0:02:52.9]} 16... Kxg7
{[%clk 0:02:37.5]} 17. Ne5 {[%clk 0:02:52.5]} 17... Ne7 {[%clk 0:02:29.9]} 18.
Rac1 {[%clk 0:02:42.1]} 18... Bf5 {[%clk 0:02:26.8]} 19. Qf3 {[%clk 0:02:40.3]}
19... Be4 {[%clk 0:02:17.4]} 20. Qf4 {[%clk 0:02:35.7]} 20... Rc8 {[%clk
0:02:10.9]} 21. Ng4 {[%clk 0:02:23.6]} 21... Nf5 {[%clk 0:01:46.4]} 22. f3
{[%clk 0:02:15.7]} 22... Rxc1 {[%clk 0:01:44.8]} 23. Rxc1 {[%clk 0:02:12.2]}
23... Nxd4 {[%clk 0:01:43]} 24. Qe5+ {[%clk 0:02:08.4]} 24... f6 {[%clk
0:01:18.3]} 25. Qxd4 {[%clk 0:02:07.4]} 1-0

[Event "*** Titled Tuesday Blitz"]
[Site "Chess.com"]
[Date "2020.10.20"]
[Round "2"]
[White "MarkkuH"]
[Black "WiktoriaPOL"]
[Result "1-0"]
[WhiteElo "2376"]
[BlackElo "2051"]
[TimeControl "180+1"]
[EndTime "10:15:00 PDT"]
[Termination "MarkkuH won by checkmate"]

1. e4 {[%clk 0:03:00.9]} 1... c5 {[%clk 0:02:59.4]} 2. Nf3 {[%clk 0:02:59.6]}
2... g6 {[%clk 0:02:57.4]} 3. d4 {[%clk 0:02:56.4]} 3... cxd4 {[%clk 0:02:57.4]}
4. Nxd4 {[%clk 0:02:56.5]} 4... Nc6 {[%clk 0:02:57]} 5. Nc3 {[%clk 0:02:55.2]}
5... Bg7 {[%clk 0:02:55.6]} 6. Be3 {[%clk 0:02:55.6]} 6... Nf6 {[%clk
0:02:54.9]} 7. Bc4 {[%clk 0:02:54.9]} 7... Qa5 {[%clk 0:02:54]} 8. O-O {[%clk
0:02:53.7]} 8... O-O {[%clk 0:02:52.8]} 9. Bb3 {[%clk 0:02:53.8]} 9... d6 {[%clk
0:02:52.4]} 10. h3 {[%clk 0:02:53.9]} 10... Bd7 {[%clk 0:02:51.9]} 11. f4 {[%clk
0:02:48.6]} 11... Rac8 {[%clk 0:02:48]} 12. Qf3 {[%clk 0:02:45.2]} 12... e5
{[%clk 0:02:36.4]} 13. Nde2 {[%clk 0:02:35.7]} 13... Be6 {[%clk 0:02:20.8]} 14.
f5 {[%clk 0:02:21.3]} 14... Bxb3 {[%clk 0:02:15.5]} 15. axb3 {[%clk 0:02:20.3]}
15... Qc7 {[%clk 0:02:14.1]} 16. g4 {[%clk 0:02:09.7]} 16... a6 {[%clk
0:02:09.6]} 17. g5 {[%clk 0:02:08.6]} 17... Nd7 {[%clk 0:02:07.8]} 18. Nd5
{[%clk 0:02:04.3]} 18... Qb8 {[%clk 0:02:04.4]} 19. f6 {[%clk 0:01:58.6]} 19...
Bh8 {[%clk 0:02:03.5]} 20. h4 {[%clk 0:01:47.7]} 20... b5 {[%clk 0:01:59]} 21.
h5 {[%clk 0:01:44.6]} 21... gxh5 {[%clk 0:01:53.9]} 22. Ng3 {[%clk 0:01:34.3]}
22... h4 {[%clk 0:01:51.3]} 23. Nf5 {[%clk 0:01:31.8]} 23... Rfe8 {[%clk
0:01:48]} 24. Qh5 {[%clk 0:01:27.8]} 24... a5 {[%clk 0:01:33.2]} 25. Nh6+ {[%clk
0:01:24.9]} 25... Kf8 {[%clk 0:01:33.6]} 26. Qxf7# {[%clk 0:01:24.1]} 1-0

[Event "*** Titled Tuesday Blitz"]
[Site "Chess.com"]
[Date "2020.10.20"]
[Round "2"]
[White "SophieNikoladze"]
[Black "Ranindu2003"]
[Result "0-1"]
[WhiteElo "2273"]
[BlackElo "2559"]
[TimeControl "180+1"]
[EndTime "10:15:15 PDT"]
[Termination "Ranindu2003 won by resignation"]

1. d4 {[%clk 0:03:00.9]} 1... Nf6 {[%clk 0:02:58]} 2. Nf3 {[%clk 0:03:00.8]}
2... e6 {[%clk 0:02:56.9]} 3. e3 {[%clk 0:03:00.6]} 3... c5 {[%clk 0:02:53.9]}
4. Bd3 {[%clk 0:03:00.4]} 4... b6 {[%clk 0:02:54.1]} 5. b3 {[%clk 0:03:00.4]}
5... Bb7 {[%clk 0:02:54.8]} 6. O-O {[%clk 0:03:00.2]} 6... Nc6 {[%clk
0:02:55.2]} 7. Bb2 {[%clk 0:03:00.3]} 7... d5 {[%clk 0:02:54.7]} 8. Nbd2 {[%clk
0:02:58.3]} 8... Bd6 {[%clk 0:02:54.5]} 9. a3 {[%clk 0:02:58.4]} 9... O-O {[%clk
0:02:53.6]} 10. Ne5 {[%clk 0:02:58.4]} 10... Ne7 {[%clk 0:02:53.5]} 11. Qf3
{[%clk 0:02:55.8]} 11... Qc7 {[%clk 0:02:45.9]} 12. g4 {[%clk 0:02:51.2]} 12...
Ng6 {[%clk 0:02:12.6]} 13. Qg3 {[%clk 0:02:44.4]} 13... Ne4 {[%clk 0:02:03]} 14.
Nxe4 {[%clk 0:02:42.8]} 14... dxe4 {[%clk 0:02:03.9]} 15. Bc4 {[%clk 0:02:38.8]}
15... b5 {[%clk 0:01:56.4]} 16. Bxb5 {[%clk 0:02:15.9]} 16... f6 {[%clk
0:01:55.8]} 17. Bc4 {[%clk 0:02:15.6]} 17... fxe5 {[%clk 0:01:55.8]} 18. Bxe6+
{[%clk 0:02:14.5]} 18... Kh8 {[%clk 0:01:56.3]} 19. d5 {[%clk 0:02:14.8]} 19...
Rf3 {[%clk 0:01:49.7]} 20. Qg2 {[%clk 0:02:14.9]} 20... Nh4 {[%clk 0:01:48.1]}
21. Qh1 {[%clk 0:02:14.4]} 21... Bc8 {[%clk 0:01:43.8]} 22. Bxc8 {[%clk
0:02:10.2]} 22... Qxc8 {[%clk 0:01:44.7]} 23. h3 {[%clk 0:02:09.6]} 23... h5
{[%clk 0:01:44.5]} 24. Rfd1 {[%clk 0:01:49.9]} 24... hxg4 {[%clk 0:01:42.1]} 25.
hxg4 {[%clk 0:01:49.7]} 25... Qxg4+ {[%clk 0:01:41]} 26. Kf1 {[%clk 0:01:49.9]}
26... Raf8 {[%clk 0:01:23.4]} 27. Rd2 {[%clk 0:01:48.4]} 27... Rh3 {[%clk
0:01:23.1]} 28. Qg1 {[%clk 0:01:48.2]} 28... Qxg1+ {[%clk 0:01:23.2]} 29. Kxg1
{[%clk 0:01:47.9]} 29... Nf3+ {[%clk 0:01:24.1]} 30. Kg2 {[%clk 0:01:47.7]}
30... Rh2+ {[%clk 0:01:19.3]} 0-1

[Event "*** Titled Tuesday Blitz"]
[Site "Chess.com"]
[Date "2020.10.20"]
[Round "2"]
[White "AttractiveMustard"]
[Black "jamalm2"]
[Result "1-0"]
[WhiteElo "2352"]
[BlackElo "1816"]
[TimeControl "180+1"]
[EndTime "10:15:16 PDT"]
[Termination "AttractiveMustard won by checkmate"]

1. e4 {[%clk 0:03:00]} 1... g6 {[%clk 0:02:57.8]} 2. d4 {[%clk 0:02:59.7]} 2...
Bg7 {[%clk 0:02:57.3]} 3. Nc3 {[%clk 0:02:59.5]} 3... c6 {[%clk 0:02:57]} 4. f4
{[%clk 0:02:59.1]} 4... d6 {[%clk 0:02:56]} 5. Nf3 {[%clk 0:02:58.2]} 5... Bg4
{[%clk 0:02:53.9]} 6. Be3 {[%clk 0:02:51.5]} 6... Nd7 {[%clk 0:02:52.1]} 7. h3
{[%clk 0:02:48.7]} 7... Bxf3 {[%clk 0:02:50.6]} 8. Qxf3 {[%clk 0:02:49.6]} 8...
Ngf6 {[%clk 0:02:47.6]} 9. e5 {[%clk 0:02:41.7]} 9... dxe5 {[%clk 0:02:31.4]}
10. fxe5 {[%clk 0:02:31.6]} 10... Ng8 {[%clk 0:01:45.8]} 11. Bc4 {[%clk
0:02:30.8]} 11... e6 {[%clk 0:01:45.3]} 12. Ne4 {[%clk 0:02:26.8]} 12... Bf8
{[%clk 0:01:42.4]} 13. O-O {[%clk 0:02:22.5]} 13... Nxe5 {[%clk 0:00:33.6]} 14.
dxe5 {[%clk 0:02:20.1]} 14... Qc7 {[%clk 0:00:33.4]} 15. Bxe6 {[%clk 0:02:11.8]}
15... Qxe5 {[%clk 0:00:17.3]} 16. Qxf7+ {[%clk 0:02:06.6]} 16... Kd8 {[%clk
0:00:16.5]} 17. Qd7# {[%clk 0:02:07.5]} 1-0

[Event "*** Titled Tuesday Blitz"]
[Site "Chess.com"]
[Date "2020.10.20"]
[Round "2"]
[White "TrenerChos"]
[Black "plumalka"]
[Result "0-1"]
[WhiteElo "2194"]
[BlackElo "2424"]
[TimeControl "180+1"]
[EndTime "10:15:25 PDT"]
[Termination "plumalka won by resignation"]

1. d4 {[%clk 0:03:00.6]} 1... Nf6 {[%clk 0:02:59.5]} 2. Nf3 {[%clk 0:02:57]}
2... c5 {[%clk 0:02:59.3]} 3. g3 {[%clk 0:02:53.9]} 3... cxd4 {[%clk 0:02:58.7]}
4. Nxd4 {[%clk 0:02:53.7]} 4... e5 {[%clk 0:02:58.8]} 5. Nb3 {[%clk 0:02:45.6]}
5... d5 {[%clk 0:02:58.3]} 6. Bg2 {[%clk 0:02:43.2]} 6... Be7 {[%clk 0:02:54.3]}
7. O-O {[%clk 0:02:38.8]} 7... O-O {[%clk 0:02:54]} 8. Bg5 {[%clk 0:02:36.2]}
8... Be6 {[%clk 0:02:52.5]} 9. Nc3 {[%clk 0:02:32.7]} 9... e4 {[%clk 0:02:31.8]}
10. Nd4 {[%clk 0:02:21]} 10... Nc6 {[%clk 0:02:29.5]} 11. Nxe6 {[%clk
0:02:19.5]} 11... fxe6 {[%clk 0:02:30.4]} 12. Bh3 {[%clk 0:02:18.4]} 12... Qd6
{[%clk 0:02:24.2]} 13. Nb5 {[%clk 0:02:10.9]} 13... Qd7 {[%clk 0:02:10.3]} 14.
c4 {[%clk 0:01:53.8]} 14... d4 {[%clk 0:02:00.3]} 15. Qc2 {[%clk 0:01:14.7]}
15... a6 {[%clk 0:01:52.5]} 16. Na3 {[%clk 0:01:08.8]} 16... d3 {[%clk
0:01:51.5]} 17. exd3 {[%clk 0:01:00.8]} 17... Nd4 {[%clk 0:01:48.3]} 0-1

[Event "*** Titled Tuesday Blitz"]
[Site "Chess.com"]
[Date "2020.10.20"]
[Round "2"]
[White "MateusViageiro"]
[Black "Evachess2006"]
[Result "1-0"]
[WhiteElo "2349"]
[BlackElo "1638"]
[TimeControl "180+1"]
[EndTime "10:15:29 PDT"]
[Termination "MateusViageiro won by resignation"]

1. e4 {[%clk 0:03:00.9]} 1... e5 {[%clk 0:02:52.2]} 2. Nf3 {[%clk 0:03:01]} 2...
Nc6 {[%clk 0:02:44.4]} 3. Bb5 {[%clk 0:03:00.8]} 3... Nf6 {[%clk 0:02:31.4]} 4.
O-O {[%clk 0:02:56.2]} 4... a6 {[%clk 0:02:19.9]} 5. Ba4 {[%clk 0:02:53]} 5...
b5 {[%clk 0:02:03.6]} 6. Bb3 {[%clk 0:02:49.3]} 6... Bc5 {[%clk 0:01:43.5]} 7.
d3 {[%clk 0:02:46.6]} 7... O-O {[%clk 0:01:39.8]} 8. h3 {[%clk 0:02:44.7]} 8...
d5 {[%clk 0:01:34.9]} 9. Qe2 {[%clk 0:02:42.4]} 9... dxe4 {[%clk 0:01:18]} 10.
dxe4 {[%clk 0:02:43.3]} 10... Nd4 {[%clk 0:01:15.3]} 11. Nxd4 {[%clk 0:02:42.1]}
11... Qxd4 {[%clk 0:00:59.9]} 12. Be3 {[%clk 0:02:34]} 12... Qxe4 {[%clk
0:00:41.5]} 13. Nc3 {[%clk 0:02:29]} 13... Qc6 {[%clk 0:00:27.7]} 14. Bg5 {[%clk
0:02:11.2]} 14... Bd4 {[%clk 0:00:24.9]} 15. Bxf6 {[%clk 0:02:09.7]} 15... Qxf6
{[%clk 0:00:22]} 16. Nd5 {[%clk 0:02:06.9]} 16... c6 {[%clk 0:00:13.5]} 17.
Nxf6+ {[%clk 0:02:06.4]} 1-0

[Event "*** Titled Tuesday Blitz"]
[Site "Chess.com"]
[Date "2020.10.20"]
[Round "2"]
[White "Sychev_Klementy"]
[Black "chess94cu"]
[Result "1-0"]
[WhiteElo "2877"]
[BlackElo "2567"]
[TimeControl "180+1"]
[EndTime "10:15:31 PDT"]
[Termination "Sychev_Klementy won by resignation"]

1. e4 {[%clk 0:03:00.9]} 1... e5 {[%clk 0:02:59.4]} 2. Nf3 {[%clk 0:02:59.8]}
2... Nc6 {[%clk 0:02:59.1]} 3. Bb5 {[%clk 0:03:00.1]} 3... a6 {[%clk 0:02:58.8]}
4. Ba4 {[%clk 0:03:00.2]} 4... Nf6 {[%clk 0:02:58.4]} 5. O-O {[%clk 0:02:59.8]}
5... Be7 {[%clk 0:02:58.7]} 6. d3 {[%clk 0:03:00.1]} 6... b5 {[%clk 0:02:50.1]}
7. Bb3 {[%clk 0:02:59.9]} 7... d6 {[%clk 0:02:50.7]} 8. a4 {[%clk 0:02:57.3]}
8... Rb8 {[%clk 0:02:48]} 9. axb5 {[%clk 0:02:56.3]} 9... axb5 {[%clk
0:02:48.9]} 10. c3 {[%clk 0:02:52.3]} 10... O-O {[%clk 0:02:46.6]} 11. h3 {[%clk
0:02:46.8]} 11... h6 {[%clk 0:02:30.5]} 12. d4 {[%clk 0:02:28.3]} 12... exd4
{[%clk 0:02:15.1]} 13. cxd4 {[%clk 0:02:27.6]} 13... d5 {[%clk 0:02:12.3]} 14.
e5 {[%clk 0:02:23.3]} 14... Ne4 {[%clk 0:02:11.7]} 15. Nc3 {[%clk 0:02:22.4]}
15... Nxc3 {[%clk 0:01:56.3]} 16. bxc3 {[%clk 0:02:23.3]} 16... Be6 {[%clk
0:01:56.2]} 17. Bc2 {[%clk 0:02:15.5]} 17... f5 {[%clk 0:01:42]} 18. exf6 {[%clk
0:02:12.9]} 18... Rxf6 {[%clk 0:01:41.5]} 19. Re1 {[%clk 0:01:58.3]} 19... Bf5
{[%clk 0:01:27.7]} 20. Bxf5 {[%clk 0:01:54.5]} 20... Rxf5 {[%clk 0:01:28.6]} 21.
Ra6 {[%clk 0:01:53.1]} 21... Rb6 {[%clk 0:01:25.9]} 22. Rxb6 {[%clk 0:01:51.9]}
22... cxb6 {[%clk 0:01:26.8]} 23. Qd3 {[%clk 0:01:52.4]} 23... Rf6 {[%clk
0:01:19]} 24. Qxb5 {[%clk 0:01:51.7]} 24... Kh8 {[%clk 0:01:13.7]} 25. Ne5
{[%clk 0:01:50.1]} 25... Nxe5 {[%clk 0:01:11.5]} 26. Rxe5 {[%clk 0:01:49.3]}
26... Bd6 {[%clk 0:00:59.3]} 27. Re8+ {[%clk 0:01:48.5]} 1-0

[Event "*** Titled Tuesday Blitz"]
[Site "Chess.com"]
[Date "2020.10.20"]
[Round "2"]
[White "Egorov_Pavel"]
[Black "AungTZ"]
[Result "1-0"]
[WhiteElo "2405"]
[BlackElo "2144"]
[TimeControl "180+1"]
[EndTime "10:15:48 PDT"]
[Termination "Egorov_Pavel won by resignation"]

1. d4 {[%clk 0:03:00.9]} 1... Nf6 {[%clk 0:02:58.7]} 2. c4 {[%clk 0:03:00.6]}
2... e6 {[%clk 0:02:58.8]} 3. Nc3 {[%clk 0:03:00.8]} 3... Bb4 {[%clk 0:02:58]}
4. e3 {[%clk 0:03:01.1]} 4... O-O {[%clk 0:02:56.1]} 5. Nf3 {[%clk 0:03:01.7]}
5... b6 {[%clk 0:02:54.3]} 6. Bd3 {[%clk 0:03:02]} 6... Bb7 {[%clk 0:02:53.3]}
7. O-O {[%clk 0:03:02.4]} 7... Bxc3 {[%clk 0:02:53.5]} 8. bxc3 {[%clk
0:03:03.3]} 8... c5 {[%clk 0:02:52.6]} 9. Re1 {[%clk 0:03:03.5]} 9... Ne4 {[%clk
0:02:52.1]} 10. Qc2 {[%clk 0:03:03.2]} 10... f5 {[%clk 0:02:49.6]} 11. Nd2
{[%clk 0:03:03.8]} 11... Nxd2 {[%clk 0:02:47.7]} 12. Bxd2 {[%clk 0:03:04.7]}
12... d6 {[%clk 0:02:47.1]} 13. e4 {[%clk 0:03:01.7]} 13... f4 {[%clk
0:02:44.9]} 14. e5 {[%clk 0:02:57.3]} 14... h6 {[%clk 0:02:42.5]} 15. Be4 {[%clk
0:02:54.6]} 15... d5 {[%clk 0:02:33]} 16. cxd5 {[%clk 0:02:54.2]} 16... Bxd5
{[%clk 0:02:32.8]} 17. Bxd5 {[%clk 0:02:47.3]} 17... Qxd5 {[%clk 0:02:32]} 18.
Qe4 {[%clk 0:02:43.9]} 18... Qxe4 {[%clk 0:02:25.4]} 19. Rxe4 {[%clk 0:02:44.8]}
19... f3 {[%clk 0:02:25.9]} 20. dxc5 {[%clk 0:02:36.8]} 20... bxc5 {[%clk
0:02:23.4]} 21. Be3 {[%clk 0:02:37.3]} 21... Na6 {[%clk 0:02:16.6]} 22. Ra4
{[%clk 0:02:35.4]} 22... Nc7 {[%clk 0:02:15.6]} 23. Bxc5 {[%clk 0:02:34.9]}
23... Rf5 {[%clk 0:02:12]} 24. Rxa7 {[%clk 0:02:22.5]} 24... Rxa7 {[%clk
0:01:42.8]} 25. Bxa7 {[%clk 0:02:23.4]} 25... Rg5 {[%clk 0:01:37.7]} 26. g3
{[%clk 0:02:16.4]} 26... Nd5 {[%clk 0:01:13.3]} 27. Bd4 {[%clk 0:02:15.8]} 27...
Nf4 {[%clk 0:01:12.8]} 28. Kf1 {[%clk 0:02:12.4]} 28... Ne2 {[%clk 0:01:10.5]}
29. a4 {[%clk 0:02:08.3]} 29... Rf5 {[%clk 0:01:06.3]} 30. a5 {[%clk 0:02:04.7]}
30... Rf8 {[%clk 0:01:06.6]} 31. a6 {[%clk 0:02:04.7]} 31... Ra8 {[%clk
0:01:05.9]} 32. a7 {[%clk 0:02:02.8]} 32... Kh7 {[%clk 0:01:04.6]} 33. Ra6
{[%clk 0:01:58.2]} 33... Kg8 {[%clk 0:00:52.1]} 34. Rb6 {[%clk 0:01:52.7]} 34...
Nxd4 {[%clk 0:00:49]} 35. Rb8+ {[%clk 0:01:52]} 1-0

[Event "*** Titled Tuesday Blitz"]
[Site "Chess.com"]
[Date "2020.10.20"]
[Round "2"]
[White "rugbyclub"]
[Black "WuinaterJr"]
[Result "0-1"]
[WhiteElo "2204"]
[BlackElo "2506"]
[TimeControl "180+1"]
[EndTime "10:15:50 PDT"]
[Termination "WuinaterJr won by resignation"]

1. e4 {[%clk 0:03:00.9]} 1... c5 {[%clk 0:02:59]} 2. Nc3 {[%clk 0:03:00.2]} 2...
d6 {[%clk 0:02:59]} 3. d4 {[%clk 0:02:56]} 3... cxd4 {[%clk 0:02:58.8]} 4. Qxd4
{[%clk 0:02:56.7]} 4... a6 {[%clk 0:02:57.7]} 5. Nf3 {[%clk 0:02:52.6]} 5... Nc6
{[%clk 0:02:57.3]} 6. Qd2 {[%clk 0:02:51.7]} 6... Nf6 {[%clk 0:02:57.7]} 7. b3
{[%clk 0:02:51.5]} 7... e6 {[%clk 0:02:57.6]} 8. Bb2 {[%clk 0:02:52.1]} 8... Be7
{[%clk 0:02:58.2]} 9. O-O-O {[%clk 0:02:51.8]} 9... O-O {[%clk 0:02:57.8]} 10.
Kb1 {[%clk 0:02:50.5]} 10... b5 {[%clk 0:02:57.8]} 11. Bd3 {[%clk 0:02:49]}
11... Bb7 {[%clk 0:02:57.3]} 12. g4 {[%clk 0:02:48.9]} 12... Rc8 {[%clk
0:02:46.7]} 13. g5 {[%clk 0:02:48.6]} 13... Nd7 {[%clk 0:02:46.5]} 14. h4 {[%clk
0:02:48.7]} 14... Nde5 {[%clk 0:02:45.1]} 15. Nxe5 {[%clk 0:02:44.1]} 15... dxe5
{[%clk 0:02:44.6]} 16. f4 {[%clk 0:02:40.7]} 16... Bb4 {[%clk 0:02:41]} 17. a3
{[%clk 0:02:35.3]} 17... Ba5 {[%clk 0:02:38.1]} 18. f5 {[%clk 0:02:32.3]} 18...
Nd4 {[%clk 0:02:34.8]} 19. f6 {[%clk 0:02:27.1]} 19... g6 {[%clk 0:02:31.4]} 20.
h5 {[%clk 0:02:21.3]} 20... b4 {[%clk 0:02:27]} 21. axb4 {[%clk 0:02:18.9]}
21... Bxb4 {[%clk 0:02:27.9]} 22. hxg6 {[%clk 0:02:15.6]} 22... fxg6 {[%clk
0:02:28.8]} 23. Rxh7 {[%clk 0:02:14]} 23... Kxh7 {[%clk 0:02:27.2]} 24. Qh2+
{[%clk 0:02:13.5]} 24... Kg8 {[%clk 0:02:27.3]} 25. Rh1 {[%clk 0:02:06]} 25...
Rc7 {[%clk 0:02:11.5]} 26. Qxe5 {[%clk 0:01:37.7]} 26... Rff7 {[%clk 0:01:57.9]}
27. Bc4 {[%clk 0:01:29.6]} 27... Qd6 {[%clk 0:01:51.2]} 28. Qxd6 {[%clk
0:01:12.4]} 28... Bxd6 {[%clk 0:01:52.1]} 29. Rh6 {[%clk 0:01:12.4]} 29... Rh7
{[%clk 0:01:40.4]} 30. Rxg6+ {[%clk 0:01:10.4]} 30... Kf7 {[%clk 0:01:40.7]} 31.
Rg7+ {[%clk 0:01:01.4]} 31... Rxg7 {[%clk 0:01:39.7]} 32. fxg7 {[%clk 0:01:02]}
32... Kxg7 {[%clk 0:01:36.8]} 33. Ne2 {[%clk 0:00:59.4]} 33... e5 {[%clk
0:01:37]} 34. Nxd4 {[%clk 0:00:59.3]} 34... exd4 {[%clk 0:01:37.2]} 35. Bxd4+
{[%clk 0:01:00]} 35... Kg6 {[%clk 0:01:37.7]} 36. e5 {[%clk 0:01:00.5]} 36...
Bc5 {[%clk 0:01:36.9]} 37. Bd3+ {[%clk 0:00:58.6]} 37... Kxg5 {[%clk 0:01:36.5]}
0-1

[Event "*** Titled Tuesday Blitz"]
[Site "Chess.com"]
[Date "2020.10.20"]
[Round "2"]
[White "Infernal_XaM"]
[Black "vinniethepooh"]
[Result "1/2-1/2"]
[WhiteElo "2853"]
[BlackElo "2561"]
[TimeControl "180+1"]
[EndTime "10:15:52 PDT"]
[Termination "Game drawn by repetition"]

1. d4 {[%clk 0:03:00.9]} 1... Nf6 {[%clk 0:03:00.1]} 2. c4 {[%clk 0:03:01.8]}
2... e6 {[%clk 0:03:00.4]} 3. Nf3 {[%clk 0:03:01.1]} 3... d5 {[%clk 0:03:00]} 4.
Nc3 {[%clk 0:03:00.7]} 4... c6 {[%clk 0:03:00.5]} 5. e3 {[%clk 0:02:57.2]} 5...
Nbd7 {[%clk 0:03:00.4]} 6. Bd2 {[%clk 0:02:56.2]} 6... b6 {[%clk 0:02:57.8]} 7.
a4 {[%clk 0:02:54.9]} 7... a5 {[%clk 0:02:53.3]} 8. Be2 {[%clk 0:02:52.8]} 8...
Bb4 {[%clk 0:02:47.5]} 9. O-O {[%clk 0:02:49]} 9... Ba6 {[%clk 0:02:43.2]} 10.
Ne5 {[%clk 0:02:47.6]} 10... Nxe5 {[%clk 0:02:41.2]} 11. dxe5 {[%clk 0:02:47.7]}
11... Nd7 {[%clk 0:02:38.8]} 12. cxd5 {[%clk 0:02:47.5]} 12... Bxc3 {[%clk
0:02:24.5]} 13. Bxc3 {[%clk 0:02:28.8]} 13... cxd5 {[%clk 0:02:18.6]} 14. Bxa6
{[%clk 0:02:26.5]} 14... Rxa6 {[%clk 0:02:19.5]} 15. f4 {[%clk 0:02:25.9]} 15...
Nc5 {[%clk 0:02:18.4]} 16. f5 {[%clk 0:02:25.1]} 16... exf5 {[%clk 0:02:15.7]}
17. Rxf5 {[%clk 0:02:24]} 17... O-O {[%clk 0:02:16.3]} 18. Qg4 {[%clk
0:02:23.2]} 18... Ne6 {[%clk 0:02:09]} 19. Raf1 {[%clk 0:02:13.3]} 19... Qd7
{[%clk 0:02:06.3]} 20. h4 {[%clk 0:02:11.5]} 20... b5 {[%clk 0:02:01.8]} 21.
axb5 {[%clk 0:02:04.9]} 21... Qxb5 {[%clk 0:02:02.7]} 22. h5 {[%clk 0:01:58]}
22... Qc4 {[%clk 0:01:58.8]} 23. Qg3 {[%clk 0:01:48.3]} 23... d4 {[%clk
0:01:58.2]} 24. exd4 {[%clk 0:01:20.4]} 24... Nxd4 {[%clk 0:01:59.1]} 25. Bxd4
{[%clk 0:01:21]} 25... Qxd4+ {[%clk 0:02:00]} 26. R1f2 {[%clk 0:01:21.6]} 26...
Rh6 {[%clk 0:01:55.9]} 27. Rg5 {[%clk 0:01:18.6]} 27... Rxh5 {[%clk 0:01:35.2]}
28. Rxg7+ {[%clk 0:01:11]} 28... Kh8 {[%clk 0:01:35.4]} 29. Rg5 {[%clk
0:01:05.7]} 29... Qd1+ {[%clk 0:01:27.9]} 30. Rf1 {[%clk 0:01:05.4]} 30... Qd4+
{[%clk 0:01:28.4]} 31. Rf2 {[%clk 0:01:02.4]} 31... Qd1+ {[%clk 0:01:23.7]} 32.
Rf1 {[%clk 0:01:02.6]} 32... Qd4+ {[%clk 0:01:24.6]} 33. Rf2 {[%clk 0:01:03]}
1/2-1/2